Cogmind - Beta 10.2 @@@ ROGUE MODE // 2021.02.18 @ 17:26:27 Player: cavemonk Result: Destroyed by G-47 Trooper with Particle Gun Performance ------------- Evolutions (2) 1000 Regions Visited (5) 1000 Robots Destroyed (28) 140 Value Destroyed (523) 523 Prototype IDs (27) 540 Alien Tech Used (0) 0 Bonus (300) 300 TOTAL SCORE: 3503 Bonus ------- Aligned with FarCom 300 Cogmind --------- Core Integrity 0/550 Matter 300/300 Energy 100/100 System Corruption 0% Temperature Cool (18) Movement Core (800) Ox15 Location -8/Materials Parts ------- > --- POWER (1) -------- (None) > --- PROPULSION (2) --- (None) > --- UTILITY (4) ------ Large Storage Unit High-capacity Storage Unit > --- WEAPON (4) ------- (None) > --- INVENTORY (18) --- Ion Engine Light Deuterium Engine Medium Treads Medium Treads Wheel Large Storage Unit Large Storage Unit Large Matter Pod (150) XL Autogun Array Peak State ------------ > --- POWER ------------ Micro Nuclear Core > --- PROPULSION ------- Light Treads Light Treads > --- UTILITY ---------- Improved Heat Sink Large Storage Unit High-capacity Storage Unit Particle Charger > --- WEAPON ----------- EM Pulse Gun EM Pulse Gun EM Pulse Gun Plasma Cannon > --- INVENTORY -------- Ion Engine Light Deuterium Engine Medium Treads Medium Treads Wheel Large Storage Unit Large Storage Unit Large Matter Pod XL Autogun Array Grenade Launcher [Rating: 26] Favorites ----------- Power Ion Engine Engine Ion Engine Power Core Micro Nuclear Core Propulsion Light Treads Treads Light Treads Leg Aluminum Leg Wheel Wheel Utility Large Storage Unit Device Improved Terrain Scanner Storage Large Storage Unit Weapon EM Pulse Gun Energy Gun EM Pulse Gun Energy Cannon Plasma Cannon Launcher Grenade Launcher Impact Weapon Hammer Build | -11 -10 -10 -10 -9 -8 ------- Run | Scr Mat Min Exi Min Mat Slots Evolved 4 | . . . . . 4 Power . | . . . . . . Propulsion . | . . . . . . Utility 2 | . . . . . 2 Weapon 2 | . . . . . 2 Parts Attached 44 | 3 14 7 6 . 14 Power 3 | . . . 1 . 2 Engine 2 | . . . 1 . 1 Core 1 | . . . . . 1 Reactor . | . . . . . . Propulsion 18 | 2 6 5 2 . 3 Treads 11 | 1 4 2 1 . 3 Leg . | . . . . . . Wheel 7 | 1 2 3 1 . . Hover . | . . . . . . Flight . | . . . . . . Utility 8 | 1 3 . . . 4 Device 3 | 1 . . . . 2 Storage 5 | . 3 . . . 2 Processor . | . . . . . . Hackware . | . . . . . . Protection . | . . . . . . Artifact . | . . . . . . Weapon 15 | . 5 2 3 . 5 Energy Gun 8 | . 2 2 1 . 3 Energy Cannon 1 | . . . . . 1 Ballistic Gun . | . . . . . . Ballistic Cannon . | . . . . . . Launcher 5 | . 2 . 2 . 1 Special Weapon . | . . . . . . Impact Weapon 1 | . 1 . . . . Slashing Weapon . | . . . . . . Piercing Weapon . | . . . . . . Special Melee Weapon . | . . . . . . Unidentified Prototypes . | . . . . . . Parts Lost 15 | . . 1 . . 14 Power 3 | . . 1 . . 2 Propulsion 4 | . . . . . 4 Utility 2 | . . . . . 2 Weapon 6 | . . . . . 6 Highest Loss Streak 13 | . . 1 . . 13 Average Slot Usage (%) 97 | . 100 99 99 100 79 Engine 12 | . 14 13 14 14 6 Treads 15 | . 15 17 14 14 12 Wheel 10 | . 12 10 13 14 1 Device 1 | . 3 . . . 6 Storage 26 | . 24 28 28 28 23 Energy Gun 24 | . 26 25 22 14 26 Launcher 2 | . 1 1 6 14 . Naked Turns . | . . . . . . Heaviest Build 93 | 14 58 58 58 58 93 Greatest Support 40 | 20 40 40 40 20 40 Greatest Overweight (x) 17 | . 5 5 5 5 17 Average Overweight (x) 3 | . 3 3 4 4 3 Largest Inventory Capacity 30 | 6 18 18 18 18 30 Average Capacity 16 | 6 14 18 18 18 21 Most Carried 18 | 6 18 18 18 18 18 Average Carried 15 | 5 13 17 17 17 14 Final Capacity 18 | 6 18 18 18 18 18 Final Carried 18 | 5 18 18 18 18 12 Class Distribution -------------------- 93% | Mutant 4% | Hauler-Gunner Dominant Class ---------------- Mutant | -10/Materials Mutant | -10/Mines Mutant | -10/Exiles Mutant | -9/Mines Mutant | -8/Materials Resources | -11 -10 -10 -10 -9 -8 ----------- Run | Scr Mat Min Exi Min Mat Matter Collected 915 | 230 210 290 . 84 101 Remotely . | . . . . . . Salvage Created 1089 | 223 319 139 . 84 324 Parts 55 | 10 21 4 . 1 19 Haulers Intercepted 1 | . 1 . . . . Recyclers Shooed 3 | 1 1 . . 1 . Parts Field Recycled . | . . . . . . Retrieved Matter . | . . . . . . Parts Self-Destructed . | . . . . . . Prevented . | . . . . . . Kills | -11 -10 -10 -10 -9 -8 ------- Run | Scr Mat Min Exi Min Mat Combat Hostiles Destroyed 13 | . 4 2 . . 7 Melee 1 | . . . . . 1 Guns 7 | . 4 . . . 3 AOE 4 | . . 2 . . 2 Classes Destroyed 10 | 2 5 1 . . 2 Worker 2 | . . 1 . . 1 Builder 2 | . 2 . . . . Tunneler 5 | 5 . . . . . Hauler 1 | . 1 . . . . Recycler 4 | 1 1 1 . 1 . Watcher 1 | . 1 . . . . Swarmer 5 | . 3 . . . 2 Grunt 5 | . 1 2 . . 2 Sentry 1 | . . . . . 1 Hunter 2 | . . . . . 2 Best Kill Streak 5 | 3 5 3 . 1 3 Combat Bots Only 3 | . 3 2 . . 3 Max Kills in Single Turn 1 | 1 1 1 . 1 1 Gunslinging . | . . . . . . Exploded 1 | . . 1 . . 1 Melee 1 | . . . . . 1 Uniques/NPCs Destroyed . | . . . . . . Combat | -11 -10 -10 -10 -9 -8 -------- Run | Scr Mat Min Exi Min Mat Damage Taken 2062 | . 83 161 27 39 1752 Core 615 | . 33 14 14 . 554 Absorbed by Shields . | . . . . . . Core Remaining (%) 87 | 100 . . . 75 . Volleys Fired 84 | 14 33 12 2 7 16 Largest 4 | 2 2 2 1 1 4 Hottest 160 | 100 100 80 30 40 160 Shots Fired 165 | 28 55 20 2 7 53 Gun 145 | 28 44 16 . 7 50 Cannon 1 | . . . . . 1 Launcher 19 | . 11 4 2 . 2 Special . | . . . . . . Kinetic . | . . . . . . Thermal 31 | 28 2 . . . 1 Explosive 19 | . 11 4 2 . 2 Electromagnetic 115 | . 42 16 . 7 50 Robot Hit Streak 11 | 5 11 6 . 2 8 Robot Miss Streak 3 | 2 3 2 . 1 2 Penetration Max . | . . . . . . Secondary Targets . | . . . . . . Shots Hit Robots 97 | 18 26 13 . 4 36 Core Hits 50 | 7 11 10 . 2 20 Critical Hits . | . . . . . . Critical Kills . | . . . . . . Critical Parts Destroyed . | . . . . . . Melee Attacks . | . . . . . . Impact . | . . . . . . Slashing . | . . . . . . Piercing . | . . . . . . Sneak Attacks . | . . . . . . Combat Hostiles . | . . . . . . Follow-up Attacks . | . . . . . . Damage Inflicted 1993 | 212 406 482 . 64 829 Guns 1225 | 212 362 143 . 64 444 Cannons . | . . . . . . Explosions 751 | . 38 339 . . 374 Melee . | . . . . . . Ramming 17 | . 6 . . . 11 Kinetic . | . . . . . . Thermal 632 | 212 62 48 . . 310 Explosive 355 | . . 291 . . 64 Electromagnetic 989 | . 338 143 . 64 444 Impact . | . . . . . . Slashing . | . . . . . . Piercing . | . . . . . . Highest Corruption 1 | . . . . 1 . Average Corruption 1 | . . . . 1 . Corruption Purged . | . . . . . . Overload Shots . | . . . . . . Overflow Damage 38 | . . . . . 38 Projectiles . | . . . . . . Explosions 38 | . . . . . 38 Melee . | . . . . . . Knockbacks . | . . . . . . Impact . | . . . . . . Kinetic . | . . . . . . Secondary . | . . . . . . Self-Inflicted Damage 154 | . 2 51 . . 101 Shots 6 | . 1 1 . . 4 Rammed 6 | . 1 . . . 5 Targets Rammed 6 | . 1 . . . 5 Kicked . | . . . . . . Crushed . | . . . . . . Highest Temperature 380 | 312 142 90 . . 380 Average Temperature 84 | 111 56 36 . . 119 Received Heat Transfer 642 | . 12 63 . . 567 Effects 1 | . . . . . 1 Energy Bleed 1 | . . . . . 1 Siege Activations . | . . . . . . Robots Corrupted 2 | . 1 . . . 1 Combat Hostiles 1 | . . . . . 1 Parts Fried 7 | . 2 . . 2 3 Impact Corruptions . | . . . . . . Robots Melted . | . . . . . . Combat Hostiles . | . . . . . . Parts Melted 1 | 1 . . . . . Heat Transferred 1053 | 629 124 . . . 300 Parts Sabotaged . | . . . . . . Parts Stolen . | . . . . . . Parts Stripped . | . . . . . . Power Chain Reactions 5 | . 1 1 . . 3 Missiles Intercepted . | . . . . . . Alert | -11 -10 -10 -10 -9 -8 ------- Run | Scr Mat Min Exi Min Mat Peak Influence 162 | 30 150 133 . 5 162 Initial 58 | . 19 58 . . 1 Average 52 | 17 53 50 . 2 99 Maximum Alert Level . | . . . . . . Low Security (%) 100 | 100 100 100 . 100 100 Level 1 . | . . . . . . Level 2 . | . . . . . . Level 3 . | . . . . . . Level 4 . | . . . . . . Level 5 . | . . . . . . High Security . | . . . . . . Max Security . | . . . . . . Squads Dispatched 1 | . . . . . 1 Investigation . | . . . . . . Extermination . | . . . . . . Reinforcement 1 | . . . . . 1 Assault . | . . . . . . Garrison . | . . . . . . Intercept . | . . . . . . Construction Impeded 1 | . . . . . 1 Haulers Reinforced . | . . . . . . Stealth | -11 -10 -10 -10 -9 -8 --------- Run | Scr Mat Min Exi Min Mat Distress Signals 2 | . 2 . . . . Communications Jammed . | . . . . . . Distress Signals . | . . . . . . Times Spotted 35 | . 8 4 3 . 20 Peak Tracking Total 9 | . 5 2 9 . 6 Tactical Retreats 3 | . 1 . . . 2 Traps | -11 -10 -10 -10 -9 -8 ------- Run | Scr Mat Min Exi Min Mat Traps Triggered . | . . . . . . Indirectly . | . . . . . . Trap Hack Attempts . | . . . . . . Triggered . | . . . . . . Disarmed . | . . . . . . Reprogrammed . | . . . . . . Reused . | . . . . . . Traps Extracted . | . . . . . . Installed . | . . . . . . Triggered . | . . . . . . Machines | -11 -10 -10 -10 -9 -8 ---------- Run | Scr Mat Min Exi Min Mat Machines Disabled 3 | . . 1 1 . 1 Max in Single Turn 1 | . . 1 1 . 1 Machines Sabotaged . | . . . . . . Garrisons Compromised . | . . . . . . Overloaded Fab Kills . | . . . . . . Fab Network Shutdowns . | . . . . . . Hacking | -11 -10 -10 -10 -9 -8 --------- Run | Scr Mat Min Exi Min Mat Machines Accessed 8 | . 6 . 1 1 . Terminals 5 | . 5 . . . . Fabricators . | . . . . . . Repair Stations 1 | . 1 . . . . Recycling Units . | . . . . . . Scanalyzers . | . . . . . . Garrison Access . | . . . . . . Total Hacks 22 | . 20 . 1 1 . Successful 16 | . 14 . 1 1 . Failed 6 | . 6 . . . . Catastrophic 1 | . 1 . . . . Database Lockouts . | . . . . . . Manual 15 | . 14 . 1 . . Terminals 16 | . 16 . . . . Fabricators . | . . . . . . Repair Stations 4 | . 4 . . . . Recycling Units . | . . . . . . Scanalyzers . | . . . . . . Garrison Access . | . . . . . . Terminal Hacks 8 | . 6 . 1 1 . Prototype ID Bank 2 | . 2 . . . . Open Door 1 | . . . . 1 . Branch Access Points 1 | . 1 . . . . Terminal Index 1 | . 1 . . . . Registered Components 1 | . 1 . . . . Zone Layout 1 | . 1 . . . . EX-Prototype ID Bank 1 | . . . 1 . . Fabricator Hacks . | . . . . . . Repair Station Hacks 4 | . 4 . . . . Scan Component 2 | . 2 . . . . Repair 2 | . 2 . . . . Recycling Unit Hacks . | . . . . . . Scanalyzer . | . . . . . . Garrison Access Hacks . | . . . . . . Unauthorized Hacks 4 | . 4 . . . . Terminals 4 | . 4 . . . . Track 3 | . 3 . . . . Operators 1 | . 1 . . . . Fabricators . | . . . . . . Repair Stations . | . . . . . . Recycling Units . | . . . . . . Scanalyzers . | . . . . . . Garrison Access . | . . . . . . Data Cores Recovered . | . . . . . . Used . | . . . . . . Hacking Detections 5 | . 5 . . . . Full Trace Events . | . . . . . . Feedback Events . | . . . . . . Feedback Blocked . | . . . . . . Robot Schematics Acquired . | . . . . . . Robots Built . | . . . . . . Matter . | . . . . . . Time . | . . . . . . Total Robot Build Rating . | . . . . . . Part Schematics Acquired . | . . . . . . Parts Built . | . . . . . . Matter . | . . . . . . Time . | . . . . . . Total Part Build Rating . | . . . . . . Parts Repaired 2 | . 2 . . . . Time 52 | . 52 . . . . Parts Recycled . | . . . . . . Recycled Matter . | . . . . . . Retrieved Matter . | . . . . . . Retrieved Components . | . . . . . . Parts Scanalyzed . | . . . . . . Part Schematics Acquired . | . . . . . . Parts Damaged . | . . . . . . Bothacking | -11 -10 -10 -10 -9 -8 ------------ Run | Scr Mat Min Exi Min Mat Used RIF Installer . | . . . . . . Robots Hacked . | . . . . . . Non-combat . | . . . . . . Combat . | . . . . . . Robot Hacks Applied . | . . . . . . Relay Couplers Released . | . . . . . . Robots Rewired . | . . . . . . Allies Hacked . | . . . . . . Hacks Repelled . | . . . . . . Allies | -11 -10 -10 -10 -9 -8 -------- Run | Scr Mat Min Exi Min Mat Total Allies . | . . . . . . Largest Group . | . . . . . . Highest-Rated Group . | . . . . . . Highest-Rated Ally . | . . . . . . Total Orders . | . . . . . . Ally Attacks . | . . . . . . Total Damage . | . . . . . . Kills . | . . . . . . Allies Corrupted . | . . . . . . Allies Melted . | . . . . . . Intel | -11 -10 -10 -10 -9 -8 ------- Run | Scr Mat Min Exi Min Mat Robot Analysis Total . | . . . . . . Derelict Logs Recovered 1 | . . 1 . . . Drone Launches . | . . . . . . Drone Recoveries . | . . . . . . Exploration | -11 -10 -10 -10 -9 -8 ------------- Run | Scr Mat Min Exi Min Mat Turns Passed 2530 | 210 686 918 349 91 276 Spaces Moved 1377 | 44 424 509 257 55 88 Core 1 | . . . . . 1 Treads 399 | 36 6 293 2 1 61 Legs 8 | 8 . . . . . Wheels 969 | . 418 216 255 54 26 Hover . | . . . . . . Flight . | . . . . . . Fastest Speed 90 | 120 90 130 130 130 140 Average Speed 142 | 152 113 165 130 131 185 Slowest Speed 900 | 160 200 200 200 200 900 Overloaded Moves . | . . . . . . Propulsion Burnouts . | . . . . . . Robots Hopped . | . . . . . . Cave-ins Triggered . | . . . . . . Exploration Rate (%) 43 | 4 72 92 65 19 11 Regions Visited 5 Branch Regions 3 Pre-discovered Areas 1 | . . 1 . . . Known Exits Taken 1 | . 1 . . . . Unknown Exits Taken 4 | 1 . 1 1 1 . Scrap Searched 1 | . . 1 . . . Spaces Dug 73 | . 68 5 . . . Terrain Destroyed 148 | . 96 32 4 . 16 Melee . | . . . . . . Projectile 1 | . . . . . 1 AOE 147 | . 96 32 4 . 15 Terrain Rammed . | . . . . . . Walls Destroyed . | . . . . . . Machines Disabled . | . . . . . . Actions | -11 -10 -10 -10 -9 -8 --------- Run | Scr Mat Min Exi Min Mat Total 1773 | 159 569 561 270 69 145 Wait 212 | 94 71 30 . . 17 Move 1372 | 43 423 508 256 54 88 Hop . | . . . . . . Pick Up 30 | 2 19 2 1 4 2 Fast Attach 5 | 1 1 . 1 . 2 Attach 15 | . 1 1 3 . 10 Detach 4 | . 1 . 1 . 2 Swap 24 | 2 12 6 2 . 2 Drop 21 | 3 7 2 4 4 1 Fire 84 | 14 33 12 2 7 16 Melee . | . . . . . . Ram 3 | . . . . . 3 Kick . | . . . . . . Crush 3 | . 1 . . . 2 Escape Stasis . | . . . . . . Rewire . | . . . . . . Trap . | . . . . . . Miscellaneous . | . . . . . . Route ------- -11/Scrapyard -10/Materials (discovered 3 exits: [*Mat x2] / *Min) -10/Mines (discovered 2 exits: [*Mat] / *Exi) -10/Exiles -9/Mines -8/Materials History --------- Turn | Location | Event 1 | -11/Scrapyard | Discovered new exit (range 3) 211 | -11/Scrapyard | Entered Materials 276 | -10/Materials | Identified exit to Mines 293 | -10/Materials | Discovered new exit (range 3) 311 | -10/Materials | Build established: Mutant 421 | -10/Materials | Discovered new exit (range 12) 595 | -10/Materials | Repaired EM Pulse Gun 622 | -10/Materials | Repaired EM Pulse Gun 897 | -10/Materials | Entered Mines 915 | -10/Mines | Met a Derelict bent on vengeance 1069 | -10/Mines | Discovered new exit (range 9) 1762 | -10/Mines | Deemed a non-threat by the Exiles lab entrance 1764 | -10/Mines | Discovered new exit (range 5) 1789 | -10/Mines | Learned location of Storage (-8) 1815 | -10/Mines | Entered Exiles 1849 | -10/Exiles | Met 8R-AWN 1871 | -10/Exiles | Met EX-HEX 1913 | -10/Exiles | Met EX-BIN 1935 | -10/Exiles | Aligned with FarCom system 1936 | -10/Exiles | Given EX-Vault access code 1970 | -10/Exiles | Opened EX-Vault 1987 | -10/Exiles | Found XL Autogun Array 2018 | -10/Exiles | Warned to stay clear of 0b10 Research branches 2057 | -10/Exiles | Met EX-DEC 2122 | -10/Exiles | Attacked by the Exiles 2153 | -10/Exiles | Discovered new exit (range 10) 2164 | -10/Exiles | Left Exiles lab with XL Autogun Array 2164 | -10/Exiles | Entered Mines 2172 | -9/Mines | Met a Derelict who couldn't figure out how to use a Trap Extractor 2237 | -9/Mines | Discovered new exit (range 13) 2255 | -9/Mines | Entered Materials 2255 | -8/Materials | Evolved 4 slots: Utility x2, Weapon x2 2513 | -8/Materials | Core integrity fell below 50% 2525 | -8/Materials | Core integrity fell below 20% 2531 | -8/Materials | Destroyed by G-47 Trooper with Particle Gun Last Messages --------------- 02486_ K-01 Serf collects debris. 02486_ U-05 Engineer lays Concrete. 02488_ K-01 Serf destroyed. 02488_ U-05 Engineer lays Concrete. 02498_ Lgt. Treads destroyed. 02503_ K-01 Serf collects debris. 02505_ Mic. Nuclear Core destroyed. 02507_ K-01 Serf collects debris. 02508_ Knocked back. 02510_ U-05 Engineer lays Concrete. 02510_ K-01 Serf collects debris. 02511_ Slammed into B-36 Bruiser. 02511_ U-05 Engineer lays Concrete. 02513_ K-01 Serf collects debris. 02514_ U-05 Engineer lays Concrete. 02519_ K-01 Serf collects debris. 02519_ Slammed into B-36 Bruiser. 02523_ U-05 Engineer builds a Door. 02527_ Slammed into B-36 Bruiser. 02527_ U-05 Engineer builds a Wall. Map ----- +----------------------------------------------------+ | ?????????????????????????????????????????????????? | | ?????????????????????????????????????????????????? | | ?????????????????????????????????????????????????? | | ????????????????????????########?????????????????? | | ????????????????????????# #####?????????????? | | ????????????????????????# # #?????????????? | | ????????????????????????# # #?????????????? | | ????????????????????????# """ # #?????????????? | | ????????????????????????# """ + #?????????????? | | ????????????????????????# """ # #?????????????? | | ????????????????????????######## #?????????????? | | ???????????????????????????????# #?????????????? | | ???????????????????????????????# #?????????????? | | ?????????????????############### #?????????????? | | ?????????????????# #?????????????? | | ?????????????????# = === #############?? | | ?????????????????# !*[= % | | ???????????????????? #### =%%###* = | | ????????????????????????# [!#?# % | | ????????????????????????# !##################### | | ????????????????????????# [ ## #???????????? | | ????????????????????????# % ## | #???????????? | | ????????????????????????# ## #???????????? | | ????????????????????????# g ## #???????????? | | ????????????????????????#%g ## #???????????? | | ????????????????????????#@b ## #???????????? | | ????????????????????????#% =##+##+######+###????? | | ????????????????????????#% % % ??? | | ????????????????????????# ??? | | ????????????????????????# = ??? | | ???????????????????????##g##### ############???? | | ??????????????????????###a# #??????????????? | | ??????????????????????# %u* #??????????????? | | ??????????????????????# [% # #??????????????? | | ??????????????????????# %= #??????????????? | | ??????????????????????# * + """??????????? | | ??????????????? #%! ! # # """??????????? | | ??????????????? +="" # ??????????? | | ???????????? # " !%!# #? ????????????? | | ???????????????## # =!! * # #? ???????????? | | ????????????????## ?# "%|% # #??+#??????????? | | ?????????????????# ?# !=%= =# #??????????????? | | ?????????????????# ??# * # #??????????????? | | ?????????????????# ???######### #??????????????? | | ??????????????????????????????????#??????????????? | | ?????????????????????????????????????????????????? | | ?????????????????????????????????????????????????? | | ?????????????????????????????????????????????????? | | ?????????????????????????????????????????????????? | | ?????????????????????????????????????????????????? | +----------------------------------------------------+ Best States ------------- Heat Dissipation 45 Energy Generation 15 Energy Capacity 250 Matter Stores 300 Matter Capacity 300 Sight Range 16 Terrain Scan Range 16 Terrain Scan Density 10 Evasion (%) 42 Recoil Reduction 2 Particle Charging 15 Item Schematics ----------------- None Robot Schematics ------------------ None Fabricated ------------ Nothing Alien Tech Used ----------------- None Achievements -------------- None Challenges ------------ None Game ------ Seed ArcLightPurifier Manual? 0 Play Time 00:22:49 Cumulative 185.7 hours Start 2021.02.18 @ 16:57:09 End 2021.02.18 @ 17:26:27 Sessions 1 Manual Loads 0 Difficulty Rogue Special Mode None Game No. 113 Rogue 113 Adventurer 0 Explorer 0 Win Type - Total 3 Types 3/0/0/0/0/0/0/0/0 Lore% 39 Gallery% 65 Achievement% 50 Wizard Run 0 Options --------- ASCII 0 Keyboard 0 Movement Mouse Keybinds 0 Fullscreen 2 Font 18/TerminusBold Map View 76x50 Tactical HUD 1 Map Filters NONE Filters NONE Steam 1 RUN: 83da60c0-0e40-48de-ad2b-4541df3cb6ce